fUST/lending_fUST_20260109
["ID","MTS","AMOUNT","RATE_DAILY","PERIOD"]
[401071718,1767904239120,-587.0,0.00014667,2]
[401071719,1767904239130,-864.0,0.00014858,2]
[401071720,1767904239140,-100000.0,0.00014882,2]
[401071721,1767904239150,-454.08900072,0.000149,2]
[401071722,1767904239159,-1000.0,0.000154,2]
[401071723,1767904239168,-293.89779842,0.00016072,2]
[401071724,1767904239178,-1000.0,0.00016344,2]
[401071725,1767904239187,-1000.0,0.00017978,2]
[401071726,1767904239197,-244.0,0.00017978,2]
[401071728,1767904239206,-318.0,0.00018017,2]
[401071730,1767904239217,-1190.210437,0.00018072,2]
[401071731,1767904239227,-328.24948915,0.00018072,2]
[401071732,1767904239237,-431.87152532,0.00018089,2]
[401071733,1767904239247,-671.41359474,0.00018089,2]
[401071734,1767904239255,-671.41359474,0.00018089,2]
[401071735,1767904239264,-671.41359474,0.00018089,2]
[401071736,1767904239273,-671.41359474,0.00018089,2]
[401071737,1767904239282,-671.41359474,0.00018089,2]
[401071738,1767904239291,-671.41359474,0.00018089,2]
[401071740,1767904239301,-671.41359474,0.00018089,2]
[401071742,1767904239310,-671.41359474,0.00018089,2]
[401071744,1767904239319,-671.41359474,0.00018089,2]
[401071746,1767904239328,-671.41359474,0.00018089,2]
[401071748,1767904239337,-671.41359474,0.00018089,2]
[401071750,1767904239346,-671.41359474,0.00018089,2]
[401071752,1767904239356,-671.41359474,0.00018089,2]
[401071754,1767904239365,-671.41359474,0.00018089,2]
[401071756,1767904239374,-671.41359474,0.00018089,2]
[401071758,1767904239384,-671.41359474,0.00018089,2]
[401071760,1767904239398,-671.41359474,0.00018089,2]
[401071762,1767904239408,-704.98427449,0.00018089,2]
[401071765,1767904239418,-704.98427449,0.00018089,2]
[401071767,1767904239427,-704.98427449,0.00018089,2]
[401071769,1767904239437,-704.98427449,0.00018089,2]
[401071771,1767904239446,-704.98427449,0.00018089,2]
[401071773,1767904239455,-704.98427449,0.00018089,2]
[401071795,1767904239659,-704.98427449,0.00018089,2]
[401071798,1767904239669,-704.98427449,0.00018089,2]
[401071800,1767904239678,-704.98427449,0.00018089,2]
[401071802,1767904239688,-704.98427449,0.00018089,2]
[401071804,1767904239698,-902.37987135,0.00018089,2]
[401071806,1767904239707,-902.37987135,0.00018089,2]
[401071808,1767904239717,-220.0,0.00018959,3]
[401071810,1767904239726,-1000.0,0.00019776,2]
[401071812,1767904239736,-492.0,0.00019776,2]
[401071814,1767904239745,-881.89,0.000198,2]
[401071816,1767904239754,-16392.84,0.000198,2]
[401071818,1767904239763,-362.60117987,0.00020072,2]
[401071820,1767904239777,-1041.66666667,0.00020418,2]
[401071822,1767904239786,-1000.0,0.00021754,10]
[401071824,1767904239795,-791.0,0.00021754,10]
[401071826,1767904239804,-396.9528706,0.00022072,2]
[401071828,1767904239813,-518.33,0.000221,2]
[401071830,1767904239823,-174.0,0.00022247,6]
[401071832,1767904239831,-1000.0,0.00023929,10]
[401071834,1767904239840,-1000.0,0.00023929,10]
[401071836,1767904239851,-431.30456132,0.00024072,2]
[401071838,1767904239860,-679.6366844,0.00024607,2]
[401071840,1767904239869,-380.0,0.00024658,2]
[401071842,1767904239878,-16664.4728765,0.000249,2]
[401071844,1767904239888,-559.59362836,0.00025,15]
[401071846,1767904239897,-2662.11877043,0.00025,2]
[401071848,1767904239906,-2673.80811109,0.00025,2]
[401071850,1767904239916,-20757.85955183,0.00025,2]
[401071852,1767904239926,-10364.0,0.00025,2]
[401071854,1767904239935,-500.0,0.00025,2]
[401071856,1767904239945,-300.0,0.00025,30]
[401071859,1767904239954,-1557.93414873,0.00025,2]
[401071862,1767904239963,-759.14155668,0.00025,2]
[401071865,1767904239972,-579.94263287,0.000252,5]
[401071867,1767904239981,-881.89,0.000252,14]
[401071869,1767904239991,-16392.84,0.000252,2]
[401071871,1767904240000,-250.0,0.00025205,2]
[401071873,1767904240009,-900.0,0.00025469,3]
[401071875,1767904240018,-1000.0,0.000255,2]
[401071877,1767904240027,-156.0,0.00025534,17]
[401071879,1767904240036,-350.0,0.00025753,2]
[401071881,1767904240046,-16664.4728765,0.00025949,2]
[401071883,1767904240056,-17866.08929819,0.00026,30]
[401071885,1767904240065,-17467.00445744,0.00026,2]
[401071887,1767904240075,-161.0,0.00026,5]
[401071889,1767904240083,-1041.66666667,0.00026,30]
[401071891,1767904240092,-518.33,0.00026,2]
[401071893,1767904240102,-465.65625204,0.00026072,2]
[401071895,1767904240111,-194.59744594,0.0002616,2]
[401071897,1767904240121,-450.0,0.00026301,2]
[401071899,1767904240131,-180.05041412,0.00026318,2]
[401071901,1767904240140,-1000.0,0.00026322,30]
[401071903,1767904240149,-1000.0,0.00026322,30]
[401071905,1767904240159,-579.0,0.00026322,30]
[401071907,1767904240167,-900.0,0.00026367,7]
[401071909,1767904240177,-343.06,0.000265,7]
[401071911,1767904240187,-200.0,0.0002654,14]
[401071913,1767904240195,-500.0,0.00026611,7]
[401071915,1767904240205,-30000.0,0.00026791,2]
[401071917,1767904240213,-550.0,0.00026849,2]
[401071919,1767904240223,-881.89,0.000269,14]
[401071921,1767904240232,-16392.84,0.000269,2]
[401071923,1767904240241,-1766.13018199,0.00027,2]
[401071925,1767904240250,-600.0,0.00027,14]
[401071927,1767904240260,-75040.16705244,0.00027,30]
[401071929,1767904240269,-1041.66666667,0.00027,30]
[401071931,1767904240279,-446.0,0.00027,7]
[401071933,1767904240288,-900.0,0.00027028,7]
[401071934,1767904240298,-900.0,0.00027062,7]
[401071935,1767904240308,-308.045,0.00027258,16]
[401071936,1767904240317,-151.0,0.00027263,2]
[401071937,1767904240326,-900.0,0.00027297,7]
[401071939,1767904240335,-160.0,0.00027309,3]
[401071941,1767904240344,-7336.69268307,0.00027339,2]
[401071943,1767904240354,-230.27,0.00027357,2]
[401071945,1767904240363,-223.85462441,0.00027397,2]
[401071947,1767904240372,-1881.87,0.00027397,2]
[401071949,1767904240381,-650.0,0.00027397,5]
[401071950,1767904240391,-500.0,0.00027397,5]
[401071951,1767904240401,-300.0,0.00027397,5]
[401071952,1767904240410,-518.33,0.000274,2]
[401071953,1767904240419,-500.0,0.00027453,7]
[401071954,1767904240429,-500.0,0.00027454,7]
[401071955,1767904240438,-900.8992001,0.00027488,7]
[401071956,1767904240448,-343.06,0.000275,7]
[401071957,1767904240457,-45941.24138367,0.000275,2]
[401071958,1767904240466,-900.0,0.00027654,7]
[401071959,1767904240477,-7708.90119015,0.00027662,2]
[401071960,1767904240486,-900.0,0.00027662,7]
[401071961,1767904240495,-446.0,0.00027671,14]
[401071962,1767904240504,-35714.32,0.000277,3]
[401071963,1767904240513,-1041.66666667,0.000277,3]
[401071964,1767904240523,-168.0,0.00027713,2]
[401071965,1767904240532,-900.0,0.00027747,7]
[401071966,1767904240542,-1000.0,0.00027777,5]
[401071967,1767904240551,-734.0,0.0002782,2]
[401071968,1767904240561,-900.0,0.0002784,7]
[401071969,1767904240570,-376.9815269,0.00027855,30]
[401071970,1767904240580,-16664.4728765,0.00027934,2]
[401071971,1767904240589,-1500.0,0.00027944,5]
[401071972,1767904240599,-514.84070869,0.00027944,5]
[401071973,1767904240608,-1500.0,0.00027944,5]
[401071974,1767904240617,-533.88981491,0.00027944,5]
[401071975,1767904240626,-151.0,0.00027944,5]
[401071976,1767904240636,-1500.0,0.00027944,5]
[401071977,1767904240646,-553.64373807,0.00027944,5]
[401071978,1767904240655,-151.0,0.00027944,5]
[401071979,1767904240664,-1500.0,0.00027944,5]
[401071980,1767904240674,-574.12855637,0.00027944,5]
[401071981,1767904240683,-151.0,0.00027944,5]
[401071982,1767904240692,-1500.0,0.00027944,5]
[401071984,1767904240701,-595.37131296,0.00027944,5]
[401071986,1767904240710,-260.81071806,0.00027944,5]
[401071988,1767904240719,-1271.89158797,0.00027944,5]
[401071990,1767904240728,-617.40005154,0.00027944,5]
[401071992,1767904240737,-250.0,0.00027944,5]
[401071994,1767904240747,-151.0,0.00027944,5]
[401071996,1767904240757,-640.24385345,0.00027944,5]
[401071998,1767904240766,-250.0,0.00027944,5]
[401072000,1767904240780,-151.0,0.00027944,5]
[401072002,1767904240789,-663.93287602,0.00027944,5]
[401072004,1767904240799,-151.0,0.00027944,5]
[401072006,1767904240808,-250.0,0.00027944,5]
[401072008,1767904240819,-688.49839244,0.00027944,5]
[401072010,1767904240828,-151.0,0.00027944,5]
[401072012,1767904240837,-250.0,0.00027944,5]
[401072014,1767904240848,-527.79866406,0.00027944,5]
[401072015,1767904240858,-151.0,0.00027944,5]
[401072017,1767904240866,-250.0,0.00027944,5]
[401072019,1767904240876,-151.0,0.00027944,5]
[401072021,1767904240885,-250.0,0.00027944,5]
[401072023,1767904240894,-151.0,0.00027944,5]
[401072025,1767904240903,-250.0,0.00027944,5]
[401072027,1767904240912,-151.0,0.00027944,5]
[401072028,1767904240923,-250.0,0.00027944,5]
[401072029,1767904240932,-250.0,0.00027944,5]
[401072030,1767904240941,-151.00000003,0.00027944,5]
[401072031,1767904240951,-305.03589373,0.00027944,5]
[401072032,1767904240960,-250.0,0.00027944,5]
[401072033,1767904240969,-2487.15318209,0.00027944,5]
[401072034,1767904240978,-2579.17784983,0.00027944,5]
[401072035,1767904240987,-2674.60743027,0.00027944,5]
[401072036,1767904240996,-2773.56790519,0.00027944,5]
[401072037,1767904241005,-2876.18991768,0.00027944,5]
[401072038,1767904241015,-2982.60894464,0.00027944,5]
[401072039,1767904241024,-3092.96547559,0.00027944,5]
[401072040,1767904241033,-2791.39550017,0.00027944,5]
[401072041,1767904241042,-250.0,0.00027944,5]
[401072042,1767904241051,-250.0,0.00027944,5]
[401072043,1767904241060,-250.0,0.00027944,5]
[401072044,1767904241068,-250.0,0.00027944,5]
[401072045,1767904241077,-250.0,0.00027944,5]
[401072046,1767904241086,-250.0,0.00027944,5]
[401072047,1767904241094,-250.0,0.00027944,5]
[401072048,1767904241103,-257.29907451,0.00027944,5]
[401072049,1767904241112,-1728.68939635,0.00027945,5]
[401072050,1767904241121,-728.99600823,0.00027945,5]
[401072051,1767904241130,-2915.9840329,0.00027945,5]
[401072052,1767904241139,-6907.84282783,0.00027945,5]
[401072053,1767904241148,-6554.40310995,0.00027945,5]
[401072054,1767904241157,-1000.0,0.00027945,5]
[401072055,1767904241167,-750.0,0.00027945,5]
[401072056,1767904241176,-600.0,0.00027945,5]
[401072057,1767904241185,-250.0,0.00027945,5]
[401072058,1767904241194,-250.0,0.00027945,5]
[401072059,1767904241204,-16664.4728765,0.00027966,2]
[401072060,1767904241213,-9858.01420214,0.00027976,2]
[401072061,1767904241223,-8348.78401648,0.00027976,2]
[401072062,1767904241232,-864.6978268,0.00027976,2]
[401072063,1767904241241,-549.23126125,0.00027976,2]
[401072064,1767904241251,-2196.925045,0.00027976,2]
[401072065,1767904241260,-33328.945753,0.0002798,2]
[401072067,1767904241269,-368.1481199,0.0002798,2]
[401072069,1767904241278,-16664.4728765,0.0002799,2]
[401072071,1767904241287,-900.0,0.00027994,7]
[401072073,1767904241296,-493905.74540663,0.00027998,2]
[401072075,1767904241305,-151.0,0.00027998,2]
[401072077,1767904241314,-227.082154,0.00027998,7]
[401072079,1767904241324,-151.0,0.00028,19]
[401072081,1767904241333,-14599.0,0.00028,2]
[401072083,1767904241342,-15319.9145818,0.00028,2]
[401072085,1767904241351,-520.06110599,0.00028,2]
[401072087,1767904241361,-900.0,0.00028007,7]
[401072089,1767904241371,-800.0,0.00028043,2]
[401072091,1767904241379,-500.00794277,0.00028072,2]
[401072093,1767904241390,-5019.57887183,0.00028086,2]
[401072095,1767904241400,-800.0,0.00028114,2]
[401072097,1767904241409,-800.0,0.00028127,2]
[401072099,1767904241419,-900.0,0.00028135,7]
[401072101,1767904241428,-800.0,0.00028152,2]
[401072103,1767904241438,-749.42891218,0.00028153,2]
[401072105,1767904241447,-216638.147394,0.00028173,2]
[401072106,1767904241456,-500.0,0.0002818,7]
[401072108,1767904241465,-1912.968557,0.00028183,7]
[401072110,1767904241474,-1912.968557,0.00028183,7]
[401072112,1767904241483,-151.0,0.00028183,7]
[401072114,1767904241492,-1912.968557,0.00028183,7]
[401072116,1767904241500,-151.0,0.00028183,7]
[401072118,1767904241509,-1912.968557,0.00028183,7]
[401072120,1767904241518,-262.112916,0.00028183,7]
[401072122,1767904241528,-151.0,0.00028183,7]
[401072124,1767904241536,-151.0,0.00028183,7]
[401072126,1767904241550,-151.0,0.00028183,7]
[401072128,1767904241561,-151.0,0.00028183,7]
[401072130,1767904241570,-153.60505,0.00028183,7]
[401072132,1767904241579,-881.89,0.000282,14]
[401072134,1767904241590,-35714.28,0.000282,3]
[401072136,1767904241599,-1041.66666667,0.000282,3]
[401072138,1767904241608,-16392.84,0.000282,2]
[401072140,1767904241617,-1596.516846,0.00028212,2]
[401072142,1767904241628,-798.258423,0.0002822,2]
[401072144,1767904241637,-5228.5500262,0.0002822,2]
[401072146,1767904241647,-800.0,0.00028221,2]
[401072148,1767904241656,-800.0,0.00028253,2]
[401072150,1767904241665,-174.0,0.00028274,28]
[401072152,1767904241674,-800.0,0.00028278,2]
[401072154,1767904241683,-168.0,0.00028282,2]
[401072156,1767904241692,-10000.0,0.00028292,2]
[401072158,1767904241701,-1041.66666667,0.00028293,7]
[401072160,1767904241711,-167.94341584,0.00028293,2]
[401072162,1767904241720,-151.0,0.00028293,2]
[401072164,1767904241729,-151.0,0.00028293,2]
[401072166,1767904241738,-151.0,0.00028293,2]
[401072168,1767904241747,-1119.0,0.00028298,7]
[401072170,1767904241756,-1118.0,0.00028301,2]
[401072172,1767904241765,-732.0,0.00028309,2]
[401072173,1767904241774,-900.0,0.00028311,7]
[401072175,1767904241785,-732.0,0.00028351,7]
[401072177,1767904241796,-1064.121297,0.000284,2]
[401072179,1767904241805,-734.0,0.00028416,7]
[401072181,1767904241814,-900.0,0.0002842,7]
[401072183,1767904241823,-151.0,0.00028455,3]
[401072185,1767904241834,-168.0,0.00028463,2]
[401072186,1767904241843,-168.0,0.00028477,2]
[401072187,1767904241851,-4376.0,0.00028487,2]
[401072188,1767904241863,-5016.95882183,0.0002849,2]
[401072189,1767904241872,-151.0,0.0002849,2]
[401072190,1767904241880,-850.0,0.00028493,5]
[401072191,1767904241890,-845.80901206,0.00028493,5]
[401072192,1767904241898,-900.0,0.00028493,5]
[401072193,1767904241907,-350.0,0.00028493,5]
[401072194,1767904241916,-350.0,0.00028493,5]
[401072195,1767904241925,-298517.30082199,0.000285,7]
[401072196,1767904241935,-162.95,0.000285,7]
[401072197,1767904241944,-164.01,0.000285,7]
[401072198,1767904241953,-167.4,0.000285,7]
[401072199,1767904241962,-1041.66666667,0.000285,7]
[401072200,1767904241971,-343.06,0.000285,7]
[401072201,1767904241980,-153.151954,0.000285,7]
[401072202,1767904241989,-168.916695,0.000285,7]
[401072203,1767904241998,-151.0,0.000285,7]
[401072204,1767904242007,-151.0,0.000285,7]
[401072205,1767904242016,-151.0,0.000285,7]
[401072206,1767904242025,-151.0,0.000285,7]
[401072207,1767904242034,-151.0,0.000285,7]
[401072208,1767904242042,-151.0,0.000285,7]
[401072209,1767904242051,-151.0,0.000285,7]
[401072210,1767904242060,-151.0,0.000285,7]
[401072211,1767904242069,-151.0,0.000285,7]
[401072212,1767904242078,-465.027669,0.000285,7]
[401072213,1767904242087,-465.027669,0.000285,7]
[401072214,1767904242095,-465.027669,0.000285,7]
[401072215,1767904242104,-465.027669,0.000285,7]
[401072216,1767904242113,-210.013186,0.000285,7]
[401072217,1767904242122,-151.0,0.000285,7]
[401072218,1767904242130,-151.0,0.000285,7]
[401072219,1767904242140,-151.0,0.000285,7]
[401072220,1767904242149,-151.0,0.000285,7]
[401072221,1767904242157,-625.10994,0.000285,7]
[401072222,1767904242166,-625.10994,0.000285,7]
[401072223,1767904242175,-625.10994,0.000285,7]
[401072225,1767904242184,-151.0,0.000285,7]
[401072226,1767904242193,-625.10994,0.000285,7]
[401072228,1767904242203,-278.670789,0.000285,7]
[401072229,1767904242211,-151.0,0.000285,7]
[401072231,1767904242220,-151.0,0.000285,7]
[401072233,1767904242229,-284.584796,0.000285,7]
[401072235,1767904242239,-151.0,0.000285,7]
[401072237,1767904242249,-151.0,0.000285,7]
[401072239,1767904242258,-151.0,0.000285,7]
[401072241,1767904242267,-151.0,0.000285,7]
[401072244,1767904242277,-189.075092,0.000285,7]
[401072245,1767904242287,-189.075092,0.000285,7]
[401072247,1767904242297,-189.075092,0.000285,7]
[401072250,1767904242307,-189.075092,0.000285,7]
[401072251,1767904242316,-153.349181,0.000285,7]
[401072253,1767904242325,-151.0,0.000285,7]
[401072255,1767904242334,-151.0,0.000285,7]
[401072257,1767904242343,-151.0,0.000285,7]
[401072259,1767904242353,-176.797515,0.000285,7]
[401072261,1767904242362,-151.0,0.000285,7]
[401072263,1767904242371,-151.0,0.000285,7]
[401072265,1767904242380,-412.85,0.000285,7]
[401072267,1767904242389,-412.85,0.000285,7]
[401072269,1767904242398,-412.85,0.000285,7]
[401072271,1767904242408,-412.85,0.000285,7]
[401072273,1767904242417,-151.0,0.000285,7]
[401072275,1767904242426,-151.0,0.000285,7]
[401072277,1767904242439,-151.0,0.000285,7]
[401072280,1767904242448,-153.716458,0.000285,7]
[401072281,1767904242458,-151.0,0.000285,7]
[401072283,1767904242467,-151.0,0.000285,7]
[401072285,1767904242477,-151.0,0.000285,7]
[401072288,1767904242486,-151.0,0.000285,7]
[401072289,1767904242496,-191.094302,0.000285,7]
[401072292,1767904242506,-182.749737,0.000285,7]
[401072293,1767904242516,-191.094302,0.000285,7]
[401072295,1767904242525,-182.749737,0.000285,7]
[401072298,1767904242535,-191.094302,0.000285,7]
[401072299,1767904242546,-182.749737,0.000285,7]
[401072301,1767904242556,-182.749737,0.000285,7]
[401072304,1767904242565,-191.094302,0.000285,7]
[401072305,1767904242574,-151.0,0.000285,7]
[401072308,1767904242584,-151.0,0.000285,7]
[401072309,1767904242593,-1439.873322,0.000285,7]
[401072312,1767904242603,-1439.873322,0.000285,7]
[401072314,1767904242612,-1439.873322,0.000285,7]
[401072315,1767904242621,-1439.873322,0.000285,7]
[401072317,1767904242630,-757.340513,0.000285,7]
[401072319,1767904242639,-757.340513,0.000285,7]
[401072321,1767904242649,-151.0,0.000285,7]
[401072323,1767904242658,-757.340513,0.000285,7]
[401072325,1767904242667,-757.340513,0.000285,7]
[401072327,1767904242676,-1912.968557,0.000285,7]
[401072329,1767904242685,-1912.968557,0.000285,7]
[401072331,1767904242695,-151.0,0.000285,7]
[401072333,1767904242704,-1912.968557,0.000285,7]
[401072335,1767904242713,-151.0,0.000285,7]
[401072337,1767904242722,-1912.968557,0.000285,7]
[401072339,1767904242731,-238.415405,0.000285,7]
[401072341,1767904242740,-151.0,0.000285,7]
[401072343,1767904242750,-227.192077,0.000285,7]
[401072345,1767904242759,-151.0,0.000285,7]
[401072347,1767904242768,-5888.0,0.00028533,7]
[401072349,1767904242777,-732.0,0.00028575,7]
[401072351,1767904242789,-518.33,0.000286,2]
[401072353,1767904242798,-160.0,0.00028645,4]
[401072355,1767904242807,-3618.46478,0.00028675,5]
[401072357,1767904242817,-10000.0,0.000287,2]
[401072359,1767904242827,-732.0,0.00028712,2]
[401072361,1767904242836,-900.0,0.00028732,7]
[401072363,1767904242846,-4000.0,0.0002876,5]
[401072365,1767904242856,-19137.07550739,0.0002876,2]
[401072367,1767904242865,-151.366366,0.0002876,2]
[401072369,1767904242874,-1881.87,0.00028767,4]
[401072371,1767904242885,-446.0,0.00028767,14]
[401072373,1767904242895,-682.393187,0.00028767,60]
[401072375,1767904242904,-5888.0,0.0002877,2]
[401072377,1767904242913,-172.4150159,0.000288,7]
[401072379,1767904242922,-515571.50876774,0.000288,2]
[401072381,1767904242932,-151.0,0.000288,7]
[401072383,1767904242942,-151.0,0.000288,7]
[401072385,1767904242952,-151.0,0.000288,7]
[401072387,1767904242961,-228.045363,0.000288,7]
[401072390,1767904242974,-151.0,0.000288,7]
[401072392,1767904242984,-151.0,0.000288,7]
[401072393,1767904242994,-151.0,0.000288,7]
[401072395,1767904243003,-174.258743,0.000288,7]
[401072397,1767904243011,-174.258743,0.000288,7]
[401072399,1767904243021,-174.258743,0.000288,7]
[401072401,1767904243029,-174.258743,0.000288,7]
[401072403,1767904243039,-151.0,0.000288,7]
[401072405,1767904243048,-151.0,0.000288,7]
[401072407,1767904243056,-151.0,0.000288,7]
[401072410,1767904243066,-151.0,0.000288,7]
[401072413,1767904243075,-151.0,0.000288,7]
[401072415,1767904243084,-151.0,0.000288,7]
[401072417,1767904243093,-190.583108,0.000288,7]
[401072421,1767904243105,-151.0,0.000288,7]
[401072423,1767904243114,-151.0,0.000288,7]
[401072425,1767904243123,-288.938246,0.000288,7]
[401072427,1767904243132,-151.0,0.000288,7]
[401072443,1767904243271,-151.0,0.000288,7]
[401072445,1767904243281,-151.0,0.000288,7]
[401072447,1767904243290,-151.0,0.000288,7]
[401072449,1767904243299,-151.0,0.000288,7]
[401072451,1767904243309,-152.589858,0.000288,7]
[401072453,1767904243318,-177.622623,0.000288,7]
[401072455,1767904243327,-151.0,0.000288,7]
[401072457,1767904243347,-151.0,0.000288,7]
[401072459,1767904243368,-151.0,0.000288,7]
[401072461,1767904243385,-151.0,0.000288,7]
[401072463,1767904243397,-465.027669,0.000288,7]
[401072465,1767904243406,-465.027669,0.000288,7]
[401072467,1767904243415,-465.027669,0.000288,7]
[401072469,1767904243425,-465.027669,0.000288,7]
[401072471,1767904243434,-151.0,0.000288,7]
[401072473,1767904243444,-151.0,0.000288,7]
[401072475,1767904243454,-625.10994,0.000288,7]
[401072477,1767904243463,-625.10994,0.000288,7]
[401072479,1767904243473,-625.10994,0.000288,7]
[401072481,1767904243483,-151.0,0.000288,7]
[401072483,1767904243493,-625.10994,0.000288,7]
[401072485,1767904243502,-151.0,0.000288,7]
[401072487,1767904243511,-153.670085,0.000288,7]
[401072489,1767904243520,-151.0,0.000288,7]
[401072491,1767904243531,-151.0,0.000288,7]
[401072493,1767904243550,-151.0,0.000288,7]
[401072495,1767904243563,-151.0,0.000288,7]
[401072497,1767904243573,-189.075092,0.000288,7]
[401072499,1767904243583,-189.075092,0.000288,7]
[401072501,1767904243594,-189.075092,0.000288,7]
[401072503,1767904243605,-189.075092,0.000288,7]
[401072505,1767904243614,-151.0,0.000288,7]
[401072507,1767904243624,-151.0,0.000288,7]
[401072509,1767904243633,-151.0,0.000288,7]
[401072511,1767904243644,-151.0,0.000288,7]
[401072513,1767904243655,-151.0,0.000288,7]
[401072515,1767904243665,-412.85,0.000288,7]
[401072517,1767904243676,-412.85,0.000288,7]
[401072519,1767904243685,-412.85,0.000288,7]
[401072521,1767904243695,-412.85,0.000288,7]
[401072523,1767904243705,-151.0,0.000288,7]
[401072525,1767904243716,-151.0,0.000288,7]
[401072527,1767904243726,-151.0,0.000288,7]
[401072529,1767904243736,-151.0,0.000288,7]
[401072531,1767904243746,-151.0,0.000288,7]
[401072533,1767904243755,-151.0,0.000288,7]
[401072535,1767904243764,-151.0,0.000288,7]
[401072537,1767904243773,-191.094302,0.000288,7]
[401072539,1767904243782,-182.749737,0.000288,7]
[401072541,1767904243798,-191.094302,0.000288,7]
[401072543,1767904243809,-182.749737,0.000288,7]
[401072545,1767904243819,-191.094302,0.000288,7]
[401072547,1767904243829,-182.749737,0.000288,7]
[401072549,1767904243842,-182.749737,0.000288,7]
[401072551,1767904243853,-191.094302,0.000288,7]
[401072553,1767904243863,-151.0,0.000288,7]
[401072555,1767904243874,-1439.873322,0.000288,7]
[401072557,1767904243884,-1439.873322,0.000288,7]
[401072559,1767904243895,-1439.873322,0.000288,7]
[401072561,1767904243905,-1439.873322,0.000288,7]
[401072564,1767904243915,-757.340513,0.000288,7]
[401072567,1767904243925,-757.340513,0.000288,7]
[401072570,1767904243935,-151.0,0.000288,7]
[401072573,1767904243945,-757.340513,0.000288,7]
[401072576,1767904243954,-757.340513,0.000288,7]
[401072578,1767904243964,-1912.968557,0.000288,7]
[401072580,1767904243974,-1912.968557,0.000288,7]
[401072582,1767904243984,-151.0,0.000288,7]
[401072584,1767904243993,-1912.968557,0.000288,7]
[401072586,1767904244003,-151.0,0.000288,7]
[401072589,1767904244011,-1912.968557,0.000288,7]
[401072591,1767904244021,-171.590843,0.000288,7]
[401072595,1767904244030,-151.0,0.000288,7]
[401072597,1767904244039,-900.0,0.00028831,7]
[401072599,1767904244048,-4375.0,0.00028843,2]
[401072601,1767904244056,-1119.0,0.0002886,2]
[401072603,1767904244066,-1118.0,0.00028875,7]
[401072605,1767904244075,-5000.0,0.00028913,2]
[401072607,1767904244084,-1118.0,0.00028933,2]
[401072609,1767904244093,-1000.0,0.00028954,30]
[401072611,1767904244103,-1000.0,0.00028954,30]
[401072613,1767904244112,-1000.0,0.00028954,30]
[401072615,1767904244122,-4375.0,0.00028957,7]
[401072617,1767904244131,-500.0,0.00028979,7]
[401072619,1767904244140,-26101.79369213,0.00029,2]
[401072621,1767904244149,-890.36644943,0.00029,2]
[401072623,1767904244158,-200.0,0.00029,2]
[401072625,1767904244167,-1041.66666667,0.00029,30]
[401072627,1767904244176,-1041.66666667,0.00029,3]
[401072629,1767904244185,-500.0,0.00029004,7]
[401072631,1767904244194,-951.66050381,0.00029041,5]
[401072633,1767904244203,-400.12098692,0.00029041,5]